fUST/lending_fUST_20240410
["ID","MTS","AMOUNT","RATE_DAILY","PERIOD"]
[322041814,1712714438274,306.25358249,0.00020599,2]
[322041815,1712714455131,306.25358249,0.00020599,2]
[322041816,1712714473129,306.25358249,0.00020599,2]
[322041890,1712714489144,306.25358249,0.00020599,2]
[322041892,1712714518179,310.36362076,0.00020599,2]
[322041894,1712714598699,7716.80354848,0.00020865,2]
[322041912,1712714839890,331.2785077,0.000189,2]
[322041943,1712714905469,454.196093,0.00020361,2]
[322042109,1712715038233,-887.0189653,0.0002083,2]
[322042111,1712715038242,-1931.15529922,0.0002083,2]
[322042112,1712715038252,-2121.71958913,0.00020831,2]
[322042113,1712715038261,-1866.41705732,0.00020832,2]
[322042115,1712715038271,-548.90126628,0.00020833,2]
[322042116,1712715038280,-687.372286,0.00020834,2]
[322042118,1712715038289,-562.4278214,0.00020835,2]
[322042120,1712715038300,-300.0,0.00020836,2]
[322042122,1712715038309,-300.0,0.00020836,2]
[322042124,1712715038318,-3055.90041243,0.00020844,2]
[322042125,1712715038327,-17183.19645152,0.00020865,2]
[322042126,1712715038336,-352.72647841,0.00021701,2]
[322042127,1712715038346,-256.50294454,0.00021817,2]
[322042129,1712715038355,-868.7486336,0.00021909,2]
[322042130,1712715038365,-157.24822963,0.00021916,2]
[322042131,1712715038374,-500.0,0.00021917,2]
[322042132,1712715038384,-500.0,0.00021917,2]
[322042133,1712715038393,-500.0,0.00021917,2]
[322042134,1712715038402,-500.0,0.00021917,2]
[322042135,1712715038412,-500.0,0.00021917,2]
[322042136,1712715038420,-151.15889793,0.00021917,2]
[322042137,1712715038430,-500.0,0.00021917,2]
[322042138,1712715038439,-500.0,0.00021917,2]
[322042139,1712715038448,-501.26597184,0.00021917,2]
[322042140,1712715038457,-501.28752946,0.00021917,2]
[322042141,1712715038466,-500.0,0.00021917,2]
[322042142,1712715038475,-534.93694439,0.00021917,2]
[322042143,1712715038484,-500.0,0.00021917,2]
[322042144,1712715038493,-500.0,0.00021917,2]
[322042145,1712715038503,-310.40851413,0.00021917,2]
[322042146,1712715038512,-507.05877002,0.00021917,2]
[322042147,1712715038521,-500.0,0.00021917,2]
[322042148,1712715038530,-502.14848654,0.00021917,2]
[322042149,1712715038540,-500.0,0.00021917,2]
[322042150,1712715038549,-500.0,0.00021917,2]
[322042151,1712715038558,-500.0,0.00021917,2]
[322042152,1712715038567,-500.0,0.00021917,2]
[322042153,1712715038576,-500.0,0.00021917,2]
[322042154,1712715038585,-501.80464268,0.00021917,2]
[322042155,1712715038594,-500.0,0.00021917,2]
[322042156,1712715038603,-500.0,0.00021917,2]
[322042157,1712715038612,-500.0,0.00021917,2]
[322042158,1712715038621,-500.0,0.00021917,2]
[322042159,1712715038630,-501.61312441,0.00021917,2]
[322042160,1712715038639,-502.46089582,0.00021917,2]
[322042161,1712715038648,-500.0,0.00021917,2]
[322042162,1712715038658,-500.0,0.00021917,2]
[322042163,1712715038668,-500.0,0.00021917,2]
[322042164,1712715038676,-508.70402998,0.00021917,2]
[322042165,1712715038686,-500.0,0.00021917,2]
[322042166,1712715038695,-500.0,0.00021917,2]
[322042167,1712715038704,-500.0,0.00021917,2]
[322042168,1712715038714,-157.22366756,0.00021917,2]
[322042169,1712715038726,-500.0,0.00021917,2]
[322042170,1712715038735,-587.64,0.00021917,2]
[322042171,1712715038744,-500.0,0.00021917,2]
[322042172,1712715038753,-504.23625961,0.00021917,2]
[322042173,1712715038763,-500.27035429,0.00021917,2]
[322042174,1712715038772,-504.83901021,0.00021917,2]
[322042175,1712715038782,-500.0,0.00021917,2]
[322042176,1712715038790,-255.76883471,0.00021917,2]
[322042177,1712715038802,-500.0,0.00021917,2]
[322042178,1712715038810,-500.0,0.00021917,2]
[322042179,1712715038819,-307.88566827,0.00021917,2]
[322042180,1712715038828,-500.0,0.00021917,2]
[322042181,1712715038837,-500.0,0.00021917,2]
[322042182,1712715038847,-270.56145077,0.00021917,2]
[322042183,1712715038857,-387.364157,0.00021917,2]
[322042184,1712715038867,-500.0,0.00021917,2]
[322042185,1712715038877,-500.0,0.00021917,2]
[322042186,1712715038887,-500.0,0.00021917,2]
[322042187,1712715038896,-500.0,0.00021917,2]
[322042188,1712715038905,-500.0,0.00021917,2]
[322042189,1712715038915,-500.0,0.00021917,2]
[322042190,1712715038924,-500.0,0.00021917,2]
[322042191,1712715038933,-500.0,0.00021917,2]
[322042192,1712715038943,-500.0,0.00021917,2]
[322042193,1712715038953,-311.46888922,0.00021917,2]
[322042194,1712715038962,-500.0,0.00021917,2]
[322042195,1712715038971,-500.0,0.00021917,2]
[322042196,1712715038980,-248.45908726,0.00021917,2]
[322042197,1712715038989,-505.25687638,0.00021917,2]
[322042198,1712715038999,-500.0,0.00021917,2]
[322042199,1712715039008,-500.0,0.00021917,2]
[322042200,1712715039018,-500.0,0.00021917,2]
[322042201,1712715039028,-689.86,0.00021917,2]
[322042202,1712715039038,-500.0,0.00021917,2]
[322042203,1712715039048,-500.0,0.00021917,2]
[322042204,1712715039057,-207.23266716,0.00021917,2]
[322042205,1712715039067,-500.0,0.00021917,2]
[322042206,1712715039076,-500.0,0.00021917,2]
[322042207,1712715039086,-500.0,0.00021917,2]
[322042208,1712715039096,-500.0,0.00021917,2]
[322042209,1712715039105,-500.0,0.00021917,2]
[322042210,1712715039114,-500.0,0.00021917,2]
[322042211,1712715039123,-155.63333866,0.00021917,2]
[322042212,1712715039134,-500.0,0.00021917,2]
[322042213,1712715039145,-500.0,0.00021917,2]
[322042214,1712715039155,-892.95,0.00021917,2]
[322042215,1712715039164,-500.0,0.00021917,2]
[322042216,1712715039173,-500.0,0.00021917,2]
[322042217,1712715039183,-500.0,0.00021917,2]
[322042218,1712715039193,-500.0,0.00021917,2]
[322042219,1712715039202,-1392.29,0.00021917,2]
[322042220,1712715039211,-500.0,0.00021917,2]
[322042221,1712715039221,-531.28171124,0.00021917,2]
[322042222,1712715039230,-500.0,0.00021917,2]
[322042223,1712715039240,-500.0,0.00021917,2]
[322042224,1712715039249,-155.68446936,0.00021917,2]
[322042225,1712715039258,-500.0,0.00021917,2]
[322042226,1712715039267,-500.0,0.00021917,2]
[322042227,1712715039278,-500.0,0.00021917,2]
[322042228,1712715039287,-500.0,0.00021917,2]
[322042229,1712715039295,-500.0,0.00021917,2]
[322042230,1712715039305,-500.0,0.00021917,2]
[322042231,1712715039314,-500.0,0.00021917,2]
[322042232,1712715039323,-500.0,0.00021917,2]
[322042233,1712715039332,-500.0,0.00021917,2]
[322042234,1712715039340,-500.0,0.00021917,2]
[322042235,1712715039350,-500.0,0.00021917,2]
[322042236,1712715039359,-500.0,0.00021917,2]
[322042237,1712715039368,-500.0,0.00021917,2]
[322042238,1712715039377,-500.0,0.00021917,2]
[322042239,1712715039386,-2322.76,0.00021917,2]
[322042240,1712715039396,-714.43,0.00021917,2]
[322042241,1712715039405,-500.0,0.00021917,2]
[322042242,1712715039414,-500.0,0.00021917,2]
[322042243,1712715039423,-665.11,0.00021917,2]
[322042244,1712715039433,-6797.36,0.00021917,2]
[322042245,1712715039442,-500.0,0.00021917,2]
[322042246,1712715039451,-1411.26,0.00021917,2]
[322042247,1712715039460,-500.0,0.00021917,2]
[322042248,1712715039469,-544.73,0.00021917,2]
[322042249,1712715039478,-500.0,0.00021917,2]
[322042250,1712715039487,-500.0,0.00021917,2]
[322042251,1712715039497,-500.0,0.00021917,2]
[322042252,1712715039506,-500.0,0.00021917,2]
[322042253,1712715039515,-500.0,0.00021917,2]
[322042254,1712715039524,-500.0,0.00021917,2]
[322042255,1712715039533,-500.0,0.00021917,2]
[322042256,1712715039542,-500.0,0.00021917,2]
[322042257,1712715039553,-826.65,0.00021917,2]
[322042258,1712715039562,-500.0,0.00021917,2]
[322042259,1712715039571,-500.0,0.00021917,2]
[322042260,1712715039582,-500.0,0.00021917,2]
[322042261,1712715039591,-500.0,0.00021917,2]
[322042262,1712715039600,-500.0,0.00021917,2]
[322042263,1712715039610,-504.60612706,0.00021917,2]
[322042264,1712715039621,-500.0,0.00021917,2]
[322042265,1712715039632,-500.0,0.00021917,2]
[322042266,1712715039642,-500.0,0.00021917,2]
[322042268,1712715039651,-509.18143609,0.00021917,2]
[322042269,1712715039661,-500.0,0.00021917,2]
[322042270,1712715039670,-1194.33,0.00021917,2]
[322042271,1712715039678,-505.41200243,0.00021917,2]
[322042272,1712715039687,-500.0,0.00021917,2]
[322042273,1712715039696,-500.0,0.00021917,2]
[322042274,1712715039706,-500.0,0.00021917,2]
[322042275,1712715039715,-1158.39,0.00021917,2]
[322042276,1712715039728,-6310.63,0.00021917,2]
[322042277,1712715039737,-505.18303286,0.00021917,2]
[322042278,1712715039746,-503.6138353,0.00021917,2]
[322042279,1712715039756,-624.18,0.00021917,2]
[322042281,1712715039766,-500.0,0.00021917,2]
[322042283,1712715039775,-500.0,0.00021917,2]
[322042284,1712715039784,-561.54178224,0.00021917,2]
[322042285,1712715039794,-500.0,0.00021917,2]
[322042286,1712715039805,-500.0,0.00021917,2]
[322042287,1712715039814,-501.66427378,0.00021917,2]
[322042288,1712715039823,-500.0,0.00021917,2]
[322042289,1712715039832,-500.0,0.00021917,2]
[322042290,1712715039841,-500.0,0.00021917,2]
[322042291,1712715039850,-500.0,0.00021917,2]
[322042292,1712715039860,-500.0,0.00021917,2]
[322042293,1712715039869,-531.00948137,0.00021917,2]
[322042294,1712715039878,-500.0,0.00021917,2]
[322042296,1712715039887,-963.57,0.00021917,2]
[322042298,1712715039897,-596.24,0.00021917,2]
[322042300,1712715039906,-400.0,0.00021917,2]
[322042301,1712715039915,-500.0,0.00021917,2]
[322042302,1712715039924,-457.29904079,0.00021917,2]
[322042303,1712715039933,-500.0,0.00021917,2]
[322042304,1712715039942,-569.74,0.00021917,2]
[322042305,1712715039951,-2913.46,0.00021917,2]
[322042306,1712715039961,-591.86,0.00021917,2]
[322042307,1712715039970,-1506.93,0.00021917,2]
[322042308,1712715039979,-500.0,0.00021917,2]
[322042309,1712715039988,-500.0,0.00021917,2]
[322042311,1712715039997,-980.0,0.00021917,2]
[322042313,1712715040006,-500.0,0.00021917,2]
[322042314,1712715040016,-500.0,0.00021917,2]
[322042315,1712715040025,-2806.23,0.00021917,2]
[322042316,1712715040035,-3719.10840679,0.00022,2]
[322042317,1712715040044,-256.50294452,0.00022091,2]
[322042318,1712715040055,-33720.25769527,0.00022191,2]
[322042319,1712715040063,-500.0,0.00022191,2]
[322042320,1712715040072,-500.0,0.00022191,2]
[322042321,1712715040081,-500.0,0.00022191,2]
[322042322,1712715040090,-501.69244152,0.00022191,2]
[322042323,1712715040099,-500.0,0.00022191,2]
[322042324,1712715040109,-609.12142481,0.00022191,2]
[322042325,1712715040118,-500.0,0.00022191,2]
[322042326,1712715040128,-500.0,0.00022191,2]
[322042327,1712715040136,-500.0,0.00022191,2]
[322042328,1712715040146,-500.0,0.00022191,2]
[322042329,1712715040155,-500.0,0.00022191,2]
[322042330,1712715040164,-500.0,0.00022191,2]
[322042331,1712715040174,-500.0,0.00022191,2]
[322042332,1712715040183,-500.0,0.00022191,2]
[322042333,1712715040192,-365.80956703,0.00022191,2]
[322042334,1712715040201,-257.0526673,0.00022191,2]
[322042335,1712715040210,-415.14598064,0.00022191,2]
[322042336,1712715040219,-500.0,0.00022191,2]
[322042337,1712715040228,-500.0,0.00022191,2]
[322042338,1712715040237,-587.64,0.00022191,2]
[322042339,1712715040247,-500.0,0.00022191,2]
[322042340,1712715040256,-500.0,0.00022191,2]
[322042341,1712715040265,-500.0,0.00022191,2]
[322042342,1712715040275,-500.0,0.00022191,2]
[322042343,1712715040285,-500.0,0.00022191,2]
[322042344,1712715040294,-500.0,0.00022191,2]
[322042345,1712715040306,-500.0,0.00022191,2]
[322042346,1712715040315,-500.0,0.00022191,2]
[322042347,1712715040325,-500.0,0.00022191,2]
[322042348,1712715040334,-500.0,0.00022191,2]
[322042349,1712715040344,-500.0,0.00022191,2]
[322042350,1712715040353,-500.0,0.00022191,2]
[322042351,1712715040363,-500.0,0.00022191,2]
[322042352,1712715040373,-500.0,0.00022191,2]
[322042353,1712715040382,-500.0,0.00022191,2]
[322042354,1712715040391,-500.0,0.00022191,2]
[322042355,1712715040401,-689.86,0.00022191,2]
[322042356,1712715040411,-500.0,0.00022191,2]
[322042357,1712715040421,-500.0,0.00022191,2]
[322042358,1712715040430,-500.0,0.00022191,2]
[322042359,1712715040439,-500.0,0.00022191,2]
[322042360,1712715040449,-500.0,0.00022191,2]
[322042361,1712715040458,-500.0,0.00022191,2]
[322042362,1712715040469,-892.95,0.00022191,2]
[322042363,1712715040478,-611.41001067,0.00022191,2]
[322042364,1712715040487,-500.0,0.00022191,2]
[322042365,1712715040496,-1392.29,0.00022191,2]
[322042366,1712715040506,-500.0,0.00022191,2]
[322042367,1712715040516,-500.0,0.00022191,2]
[322042368,1712715040526,-500.0,0.00022191,2]
[322042369,1712715040537,-500.0,0.00022191,2]
[322042370,1712715040546,-500.0,0.00022191,2]
[322042371,1712715040557,-500.0,0.00022191,2]
[322042372,1712715040566,-500.0,0.00022191,2]
[322042373,1712715040575,-500.0,0.00022191,2]
[322042374,1712715040584,-500.0,0.00022191,2]
[322042375,1712715040594,-500.0,0.00022191,2]
[322042376,1712715040603,-500.0,0.00022191,2]
[322042378,1712715040613,-500.0,0.00022191,2]
[322042379,1712715040622,-2322.76,0.00022191,2]
[322042380,1712715040631,-714.43,0.00022191,2]
[322042381,1712715040640,-500.0,0.00022191,2]
[322042382,1712715040650,-500.0,0.00022191,2]
[322042383,1712715040658,-665.11,0.00022191,2]
[322042384,1712715040667,-6797.36,0.00022191,2]
[322042385,1712715040676,-500.0,0.00022191,2]
[322042386,1712715040686,-1411.26,0.00022191,2]
[322042387,1712715040694,-500.0,0.00022191,2]
[322042388,1712715040703,-125.63135863,0.00022191,2]
[322042440,1712715043324,-562.4278214,0.00020829,2]
[322042441,1712715043333,-500.0,0.00021917,2]
[322042442,1712715043343,-500.0,0.00021917,2]
[322042443,1712715043353,-530.04,0.00021917,2]
[322042444,1712715043363,-419.09864137,0.00022191,2]
[322042445,1712715043372,-500.0,0.00022191,2]
[322042446,1712715043381,-500.0,0.00022191,2]
[322042447,1712715043390,-500.0,0.00022191,2]
[322042448,1712715043399,-500.0,0.00022191,2]
[322042449,1712715043408,-826.65,0.00022191,2]
[322042450,1712715043417,-500.0,0.00022191,2]
[322042451,1712715043426,-500.0,0.00022191,2]
[322042452,1712715043435,-500.0,0.00022191,2]
[322042453,1712715043444,-500.0,0.00022191,2]
[322042454,1712715043453,-500.0,0.00022191,2]
[322042455,1712715043463,-1194.33,0.00022191,2]
[322042456,1712715043472,-500.0,0.00022191,2]
[322042457,1712715043482,-500.0,0.00022191,2]
[322042458,1712715043491,-500.0,0.00022191,2]
[322042459,1712715043500,-1158.39,0.00022191,2]
[322042460,1712715043510,-6310.63,0.00022191,2]
[322042461,1712715043519,-624.18,0.00022191,2]
[322042462,1712715043528,-500.0,0.00022191,2]
[322042463,1712715043538,-500.0,0.00022191,2]
[322042464,1712715043548,-500.0,0.00022191,2]
[322042465,1712715043561,-500.0,0.00022191,2]
[322042466,1712715043570,-500.0,0.00022191,2]
[322042467,1712715043580,-500.0,0.00022191,2]
[322042468,1712715043589,-963.57,0.00022191,2]
[322042469,1712715043599,-596.24,0.00022191,2]
[322042470,1712715043608,-425.18338309,0.00022191,2]
[322042471,1712715043618,-500.0,0.00022191,2]
[322042472,1712715043627,-569.74,0.00022191,2]
[322042473,1712715043636,-2913.46,0.00022191,2]
[322042474,1712715043646,-591.86,0.00022191,2]
[322042475,1712715043656,-1506.93,0.00022191,2]
[322042476,1712715043665,-500.0,0.00022191,2]
[322042477,1712715043674,-500.0,0.00022191,2]
[322042478,1712715043683,-980.0,0.00022191,2]
[322042479,1712715043692,-560.0,0.00022191,2]
[322042480,1712715043701,-500.0,0.00022191,2]
[322042481,1712715043711,-2806.23,0.00022191,2]
[322042482,1712715043722,-500.0,0.00022191,2]
[322042483,1712715043732,-500.0,0.00022191,2]
[322042484,1712715043741,-530.04,0.00022191,2]
[322042485,1712715043750,-256.50294452,0.00022365,2]
[322042486,1712715043759,-1919.69273558,0.00022463,2]
[322042487,1712715043769,-167.3382165,0.00022463,2]
[322042488,1712715043778,-5590.24160414,0.00022463,2]
[322042489,1712715043787,-500.0,0.00022465,2]
[322042490,1712715043796,-500.0,0.00022465,2]
[322042491,1712715043810,-500.0,0.00022465,2]
[322042492,1712715043819,-500.0,0.00022465,2]
[322042493,1712715043828,-500.0,0.00022465,2]
[322042494,1712715043837,-500.0,0.00022465,2]
[322042495,1712715043846,-89.53350535,0.00022465,2]
[322042496,1712715043862,-410.46649465,0.00022465,2]
[322042497,1712715043871,-500.0,0.00022465,2]
[322042498,1712715043879,-500.0,0.00022465,2]
[322042499,1712715043889,-500.0,0.00022465,2]
[322042500,1712715043898,-500.0,0.00022465,2]
[322042501,1712715043907,-500.0,0.00022465,2]
[322042502,1712715043916,-500.0,0.00022465,2]
[322042503,1712715043925,-500.0,0.00022465,2]
[322042504,1712715043934,-500.0,0.00022465,2]
[322042505,1712715043943,-500.0,0.00022465,2]
[322042506,1712715043952,-689.86,0.00022465,2]
[322042507,1712715043961,-500.0,0.00022465,2]
[322042508,1712715043969,-500.0,0.00022465,2]
[322042509,1712715043978,-500.0,0.00022465,2]
[322042510,1712715043987,-411.42653899,0.00022465,2]
[322042511,1712715043995,-500.0,0.00022465,2]
[322042512,1712715044004,-500.0,0.00022465,2]
[322042513,1712715044013,-892.95,0.00022465,2]
[322042514,1712715044021,-500.0,0.00022465,2]
[322042515,1712715044031,-1392.29,0.00022465,2]
[322042516,1712715044040,-500.0,0.00022465,2]
[322042517,1712715044049,-500.0,0.00022465,2]
[322042518,1712715044060,-500.0,0.00022465,2]
[322042519,1712715044069,-451.64015588,0.00022465,2]
[322042520,1712715044078,-500.0,0.00022465,2]
[322042521,1712715044087,-500.0,0.00022465,2]
[322042522,1712715044097,-500.0,0.00022465,2]
[322042523,1712715044106,-500.0,0.00022465,2]
[322042524,1712715044115,-500.0,0.00022465,2]
[322042525,1712715044124,-401.77249553,0.00022465,2]
[322042526,1712715044133,-500.0,0.00022465,2]
[322042527,1712715044143,-500.0,0.00022465,2]
[322042528,1712715044153,-2322.76,0.00022465,2]
[322042529,1712715044162,-714.43,0.00022465,2]
[322042530,1712715044171,-500.0,0.00022465,2]
[322042531,1712715044181,-500.0,0.00022465,2]
[322042532,1712715044190,-665.11,0.00022465,2]
[322042533,1712715044199,-6797.36,0.00022465,2]
[322042534,1712715044209,-500.0,0.00022465,2]
[322042535,1712715044219,-1411.26,0.00022465,2]
[322042536,1712715044228,-500.0,0.00022465,2]
[322042537,1712715044239,-544.73,0.00022465,2]
[322042538,1712715044249,-500.0,0.00022465,2]
[322042539,1712715044258,-500.0,0.00022465,2]
[322042540,1712715044268,-500.0,0.00022465,2]
[322042541,1712715044278,-826.65,0.00022465,2]
[322042542,1712715044289,-531.83680044,0.00022465,2]
[322042543,1712715044298,-500.0,0.00022465,2]
[322042544,1712715044310,-500.0,0.00022465,2]
[322042545,1712715044319,-500.0,0.00022465,2]
[322042546,1712715044331,-1194.33,0.00022465,2]
[322042547,1712715044340,-500.0,0.00022465,2]
[322042548,1712715044350,-500.0,0.00022465,2]
[322042549,1712715044359,-1158.39,0.00022465,2]
[322042550,1712715044369,-6310.63,0.00022465,2]
[322042551,1712715044378,-624.18,0.00022465,2]
[322042552,1712715044386,-500.0,0.00022465,2]
[322042553,1712715044396,-500.0,0.00022465,2]
[322042554,1712715044405,-500.0,0.00022465,2]
[322042555,1712715044416,-500.0,0.00022465,2]
[322042556,1712715044425,-500.0,0.00022465,2]
[322042557,1712715044435,-963.57,0.00022465,2]
[322042558,1712715044446,-596.24,0.00022465,2]
[322042559,1712715044457,-500.0,0.00022465,2]
[322042560,1712715044467,-569.74,0.00022465,2]
[322042561,1712715044476,-2913.46,0.00022465,2]
[322042562,1712715044485,-591.86,0.00022465,2]
[322042563,1712715044495,-1506.93,0.00022465,2]
[322042564,1712715044504,-500.0,0.00022465,2]
[322042565,1712715044513,-500.0,0.00022465,2]
[322042566,1712715044522,-980.0,0.00022465,2]
[322042567,1712715044532,-500.0,0.00022465,2]
[322042568,1712715044540,-2806.23,0.00022465,2]
[322042569,1712715044550,-500.0,0.00022465,2]
[322042570,1712715044560,-500.0,0.00022465,2]
[322042571,1712715044569,-530.04,0.00022465,2]
[322042572,1712715044579,-381.31262739,0.00022551,2]
[322042573,1712715044588,-256.50294452,0.00022639,2]
[322042574,1712715044597,-420.0,0.00022669,2]
[322042575,1712715044606,-500.0,0.00022739,2]
[322042576,1712715044616,-500.0,0.00022739,2]
[322042577,1712715044625,-500.0,0.00022739,2]
[322042578,1712715044634,-500.0,0.00022739,2]
[322042579,1712715044644,-500.0,0.00022739,2]
[322042580,1712715044653,-500.0,0.00022739,2]
[322042581,1712715044662,-500.0,0.00022739,2]
[322042582,1712715044672,-500.0,0.00022739,2]
[322042583,1712715044682,-500.0,0.00022739,2]
[322042584,1712715044691,-500.0,0.00022739,2]
[322042585,1712715044701,-500.0,0.00022739,2]
[322042586,1712715044711,-500.0,0.00022739,2]
[322042587,1712715044721,-500.0,0.00022739,2]
[322042588,1712715044731,-500.0,0.00022739,2]
[322042589,1712715044740,-500.0,0.00022739,2]
[322042590,1712715044749,-689.86,0.00022739,2]
[322042591,1712715044759,-500.0,0.00022739,2]
[322042592,1712715044768,-500.0,0.00022739,2]
[322042593,1712715044777,-500.0,0.00022739,2]
[322042594,1712715044786,-500.0,0.00022739,2]
[322042595,1712715044795,-500.0,0.00022739,2]
[322042596,1712715044808,-892.95,0.00022739,2]
[322042597,1712715044817,-500.0,0.00022739,2]
[322042598,1712715044827,-1392.29,0.00022739,2]
[322042599,1712715044836,-500.0,0.00022739,2]
[322042600,1712715044845,-500.0,0.00022739,2]
[322042601,1712715044854,-500.0,0.00022739,2]
[322042602,1712715044863,-500.0,0.00022739,2]
[322042603,1712715044872,-500.0,0.00022739,2]
[322042604,1712715044882,-500.0,0.00022739,2]
[322042605,1712715044890,-500.0,0.00022739,2]
[322042606,1712715044901,-500.0,0.00022739,2]
[322042607,1712715044912,-500.0,0.00022739,2]
[322042608,1712715044922,-2322.76,0.00022739,2]
[322042609,1712715044931,-714.43,0.00022739,2]
[322042610,1712715044940,-500.0,0.00022739,2]
[322042611,1712715044949,-665.11,0.00022739,2]
[322042612,1712715044958,-6797.36,0.00022739,2]
[322042613,1712715044968,-478.96183562,0.00022739,2]
[322042614,1712715044977,-1411.26,0.00022739,2]
[322042615,1712715044987,-500.0,0.00022739,2]
[322042616,1712715044996,-500.0,0.00022739,2]
[322042617,1712715045005,-544.73,0.00022739,2]
[322042618,1712715045015,-500.0,0.00022739,2]
[322042619,1712715045024,-500.0,0.00022739,2]
[322042620,1712715045034,-826.65,0.00022739,2]
[322042621,1712715045043,-500.0,0.00022739,2]
[322042622,1712715045053,-500.0,0.00022739,2]
[322042623,1712715045062,-300.33300415,0.00022739,2]
[322042624,1712715045071,-1194.33,0.00022739,2]
[322042625,1712715045080,-500.0,0.00022739,2]
[322042626,1712715045089,-500.0,0.00022739,2]
[322042627,1712715045098,-1158.39,0.00022739,2]
[322042628,1712715045107,-6310.63,0.00022739,2]
[322042629,1712715045117,-624.18,0.00022739,2]
[322042630,1712715045126,-500.0,0.00022739,2]
[322042631,1712715045136,-500.0,0.00022739,2]
[322042632,1712715045145,-500.0,0.00022739,2]
[322042633,1712715045154,-500.0,0.00022739,2]
[322042634,1712715045164,-500.0,0.00022739,2]
[322042635,1712715045174,-963.57,0.00022739,2]
[322042636,1712715045183,-596.24,0.00022739,2]
[322042637,1712715045192,-500.0,0.00022739,2]
[322042638,1712715045202,-569.74,0.00022739,2]
[322042639,1712715045211,-2913.46,0.00022739,2]
[322042640,1712715045220,-591.86,0.00022739,2]
[322042641,1712715045230,-1506.93,0.00022739,2]
[322042642,1712715045239,-500.0,0.00022739,2]
[322042643,1712715045248,-500.0,0.00022739,2]
[322042644,1712715045259,-980.0,0.00022739,2]
[322042645,1712715045268,-212.11918038,0.00022739,2]
[322042646,1712715045278,-2806.23,0.00022739,2]
[322042647,1712715045288,-500.0,0.00022739,2]
[322042648,1712715045297,-530.04,0.00022739,2]
[322042649,1712715045310,-256.50294452,0.00022913,2]
[322042650,1712715045319,-420.0,0.0002292,2]
[322042651,1712715045328,-164.02935668,0.00023012,2]
[322042652,1712715045337,-471.80064446,0.00023012,2]
[322042653,1712715045346,-483.6804233,0.00023013,2]
[322042654,1712715045357,-500.0,0.00023013,2]
[322042655,1712715045366,-500.0,0.00023013,2]
[322042656,1712715045375,-500.0,0.00023013,2]
[322042657,1712715045384,-500.0,0.00023013,2]
[322042658,1712715045393,-500.0,0.00023013,2]
[322042659,1712715045402,-500.0,0.00023013,2]
[322042661,1712715045411,-500.0,0.00023013,2]
[322042662,1712715045420,-500.0,0.00023013,2]
[322042664,1712715045430,-500.0,0.00023013,2]
[322042666,1712715045439,-500.0,0.00023013,2]
[322042667,1712715045448,-500.0,0.00023013,2]
[322042669,1712715045457,-500.0,0.00023013,2]
[322042671,1712715045466,-500.0,0.00023013,2]
[322042673,1712715045475,-500.0,0.00023013,2]